Cogmind - Beta 17 @@@ ROGUE MODE // 2026.07.18 @ 05:24:26 Player: Artackni Result: Self-destructed Performance ------------- Evolutions (7) 3500 Regions Visited (8) 1600 Robots Destroyed (33) 165 Value Destroyed (485) 485 Prototype IDs (2) 40 Alien Tech Used (0) 0 Bonus (200) 200 TOTAL SCORE: 5990 Bonus ------- Pacifist 200 Cogmind --------- Core Integrity 386/1300 Matter 105/300 Energy 93/100 System Corruption 7% Temperature Cool (0) Movement Flying (42) Location -3/Research Parts ------- > --- POWER (2) -------- (None) > --- PROPULSION (10) -- Impulse Thruster Array Impulse Thruster Array > --- UTILITY (7) ------ ECM Suite Hacking Suite Improved Hacking Suite > --- WEAPON (2) ------- Enhanced Force Lance > --- INVENTORY (5) ---- Improved Medium Armor Plating Plasma Cutter Peak State ------------ > --- POWER ------------ Light Nuclear Core > --- PROPULSION ------- Xenon Bombardment Thruster Xenon Bombardment Thruster Improved Cesium-ion Thruster Nuclear Pulse Thruster Nuclear Pulse Thruster Nuclear Pulse Thruster Nuclear Pulse Thruster Nuclear Pulse Thruster > --- UTILITY ---------- Structural Scanner Improved Signal Interpreter Improved Melee Analysis Suite Advanced Melee Analysis Suite Hacking Suite > --- WEAPON ----------- Heavy Hammer > --- INVENTORY -------- Light Ion Engine Improved Sensor Array Improved Medium Armor Plating Rocket Launcher Plasma Cutter [Rating: 60] Favorites ----------- Power Light Ion Engine Engine Light Ion Engine Power Core Fission Core Propulsion Flight Unit Flight Unit Flight Unit Utility Hacking Suite Device ECM Suite Processor Improved Melee Analysis Suite Hackware Hacking Suite Protection Improved Medium Armor Plating Weapon Heavy Hammer Launcher Rocket Launcher Impact Weapon Heavy Hammer Piercing Weapon Enhanced Force Lance Build | -11 -10 -9 -8 -7 -6 -5 -4 -3 ------- Run | Yrd Mat Mat Mat Fac Fac Fac Fac Res Slots Evolved 14 | . . 2 2 2 2 2 2 2 Power 1 | . . . . . . 1 . . Propulsion 8 | . . 2 1 1 1 1 . 2 Utility 5 | . . . 1 1 1 . 2 . Weapon . | . . . . . . . . . Parts Attached 39 | . . 4 3 2 8 9 . 13 Power 5 | . . . . . 2 1 . 2 Engine 3 | . . . . . 1 . . 2 Core 2 | . . . . . 1 1 . . Reactor . | . . . . . . . . . Propulsion 19 | . . 2 3 1 2 5 . 6 Treads . | . . . . . . . . . Leg . | . . . . . . . . . Wheel . | . . . . . . . . . Hover . | . . . . . . . . . Flight 19 | . . 2 3 1 2 5 . 6 Utility 11 | . . . . 1 3 3 . 4 Device 5 | . . . . 1 1 1 . 2 Storage . | . . . . . . . . . Processor 3 | . . . . . 1 2 . . Hackware 2 | . . . . . 1 . . 1 Protection 1 | . . . . . . . . 1 Artifact . | . . . . . . . . . Weapon 4 | . . 2 . . 1 . . 1 Energy Gun . | . . . . . . . . . Energy Cannon . | . . . . . . . . . Ballistic Gun . | . . . . . . . . . Ballistic Cannon . | . . . . . . . . . Launcher 1 | . . 1 . . . . . . Special Weapon . | . . . . . . . . . Impact Weapon 2 | . . 1 . . 1 . . . Slashing Weapon . | . . . . . . . . . Piercing Weapon 1 | . . . . . . . . 1 Special Melee Weapon . | . . . . . . . . . Unidentified Prototypes 2 | . . . . 1 1 . . . Corrupted Parts 1 | . . . 1 . . . . . System Corruption 1 | . . . 1 . . . . . Parts Lost 30 | . . 2 . . . 6 . 22 Power 5 | . . . . . . 1 . 4 Propulsion 16 | . . 2 . . . 3 . 11 Utility 7 | . . . . . . 2 . 5 Weapon 2 | . . . . . . . . 2 Highest Loss Streak 9 | . . 2 . . . 4 . 9 To Critical Strikes . | . . . . . . . . . Average Backups 3 | . . 1 1 2 3 4 5 3 Power . | . . . . . . 1 1 . Propulsion . | . . . . . . . . . Utility . | . . . . . . 1 2 1 Weapon 1 | . . . . 1 1 1 1 1 Tool/Special . | . . . . . . . . . Unused Backups 3 | . . . . . . . . 3 Power . | . . . . . . . . . Propulsion . | . . . . . . . . . Utility 2 | . . . . . . . . 2 Weapon . | . . . . . . . . . Tool/Special 1 | . . . . . . . . 1 Average Slot Usage (%) 38 | . . 12 14 36 64 76 68 29 Engine 1 | . . . . . 1 . . 2 Core 1 | . . . . . 2 4 5 . Flight 18 | . . 6 4 24 36 38 36 11 Device 4 | . . . . 4 9 9 5 3 Processor 3 | . . . . . 5 9 10 2 Hackware 2 | . . . . . . 5 5 4 Impact Weapon 3 | . . 4 9 7 6 5 5 . Peak Build Rating 60 | . . 4 5 11 37 60 54 54 Average Rating 28 | . . 1 2 6 27 46 54 35 On Entrance 18 | . . . 2 5 11 37 54 54 Avg Prop Armor Cover (%) 6 | . . . . . 4 5 27 8 Naked Turns 77 | . 39 38 . . . . . . Heaviest Build 19 | . . 3 3 4 15 15 9 19 Greatest Support 48 | 3 3 8 12 18 24 40 3 48 Greatest Overweight (x) 2 | . . . . . . . 2 2 Average Overweight (x) . | . . . . . . . 2 . Largest Inventory Capacity 5 | 5 5 5 5 5 5 5 5 5 Average Capacity 5 | 5 5 5 5 5 5 5 5 5 Most Carried 5 | . 1 2 3 2 4 5 5 5 Average Carried 3 | . . 1 1 2 3 4 5 3 Final Capacity 5 | 5 5 5 5 5 5 5 5 5 Final Carried 5 | . 1 2 2 2 4 5 5 2 Class Distribution -------------------- 54% | Mutant 16% | Scavenger-Sprinter 9% | Scavenger-Mutant 8% | Sprinter 8% | Scout 3% | Hacker-Mutant Dominant Class ---------------- Mutant | -10/Materials Mutant | -9/Materials Mutant | -8/Materials Scavenger-Mutant | -7/Factory Scavenger-Sprinter | -6/Factory Scout | -5/Factory Mutant | -4/Factory Mutant | -3/Research Resources | -11 -10 -9 -8 -7 -6 -5 -4 -3 ----------- Run | Yrd Mat Mat Mat Fac Fac Fac Fac Res Matter Collected 512 | 200 . 11 21 95 88 74 . 23 Remotely . | . . . . . . . . . Salvage Created 518 | . . 22 159 95 93 76 . 73 Parts 53 | . . 4 21 4 7 7 . 10 Haulers Intercepted . | . . . . . . . . . Recyclers Shooed . | . . . . . . . . . Parts Field Recycled . | . . . . . . . . . Retrieved Matter . | . . . . . . . . . Parts Self-Destructed . | . . . . . . . . . Prevented . | . . . . . . . . . Parts Restored . | . . . . . . . . . Kills | -11 -10 -9 -8 -7 -6 -5 -4 -3 ------- Run | Yrd Mat Mat Mat Fac Fac Fac Fac Res Combat Hostiles Destroyed 19 | . . 4 9 . . 4 . 2 AOE 19 | . . 4 9 . . 4 . 2 Classes Destroyed 6 | . . 1 4 1 . . . . Worker 6 | . . . 1 1 2 1 . 1 Builder 6 | . . . 1 1 3 . . 1 Recycler 1 | . . . . 1 . . . . Watcher 1 | . . . 1 . . . . . Swarmer 17 | . . 4 7 . . 4 . 2 Grunt 2 | . . . 2 . . . . . Best Kill Streak 12 | . . 4 12 3 5 5 . 2 Combat Bots Only 9 | . . 4 9 . . 4 . 2 Max Kills in Single Turn 4 | . . 4 3 1 1 3 . 1 Gunslinging . | . . . . . . . . . Exploded 4 | . . 4 3 . . 3 . 1 Melee . | . . . . . . . . . Uniques/NPCs Destroyed . | . . . . . . . . . Combat | -11 -10 -9 -8 -7 -6 -5 -4 -3 -------- Run | Yrd Mat Mat Mat Fac Fac Fac Fac Res Hostile Shots Fired 316 | . 20 7 40 . 22 30 . 197 Missed 159 | . 6 3 15 . 16 11 . 108 Hits 157 | . 14 4 25 . 6 19 . 89 Projectile 157 | . 14 4 25 . 6 19 . 89 Critical Strikes 7 | . . . . . . 1 . 6 Damage Taken 3265 | . 108 57 320 . 69 393 . 2318 Core 1376 | . 108 17 246 . 21 70 . 914 Absorbed by Shields . | . . . . . . . . . Core Remaining (%) 87 | 100 56 95 55 100 97 93 100 . Volleys Fired 17 | . . 1 6 . . 4 . 6 Largest 1 | . . 1 1 . . 1 . 1 Hottest 33 | . . 33 33 . . 33 . 33 Shots Fired 17 | . . 1 6 . . 4 . 6 Gun . | . . . . . . . . . Cannon . | . . . . . . . . . Launcher 17 | . . 1 6 . . 4 . 6 Special . | . . . . . . . . . Kinetic . | . . . . . . . . . Thermal . | . . . . . . . . . Explosive 17 | . . 1 6 . . 4 . 6 Electromagnetic . | . . . . . . . . . Robot Hit Streak 1 | . . . 1 . . 1 . 1 Robot Miss Streak 5 | . . 1 5 . . 3 . 2 Penetration Max . | . . . . . . . . . Secondary Targets . | . . . . . . . . . Shots Hit Robots 14 | . . . 1 3 5 2 . 3 Core Hits 46 | . . 4 24 1 3 8 . 6 Critical Kills 1 | . . . . 1 . . . . Critical Parts Destroyed . | . . . . . . . . . Critical Strikes 1 | . . . . 1 . . . . Smash 1 | . . . . 1 . . . . Melee Attacks 20 | . . . . 3 8 6 . 3 Impact 17 | . . . . 3 8 6 . . Slashing . | . . . . . . . . . Piercing 3 | . . . . . . . . 3 Sneak Attacks 11 | . . . . 3 5 1 . 2 Combat Hostiles . | . . . . . . . . . Follow-up Attacks . | . . . . . . . . . Damage Inflicted 2519 | . . 212 693 320 369 295 . 630 Guns . | . . . . . . . . . Cannons . | . . . . . . . . . Explosions 1508 | . . 212 693 . . 206 . 397 Melee 1006 | . . . . 320 369 84 . 233 Ramming 5 | . . . . . . 5 . . Kinetic . | . . . . . . . . . Thermal . | . . . . . . . . . Explosive 1358 | . . 212 543 . . 206 . 397 Electromagnetic 150 | . . . 150 . . . . . Impact 773 | . . . . 320 369 84 . . Slashing . | . . . . . . . . . Piercing 233 | . . . . . . . . 233 Highest Corruption 7 | . . . 1 . 1 1 . 7 Average Corruption 2 | . . . 1 . 1 1 . 3 Corruption Purged . | . . . . . . . . . Corruption Blocked . | . . . . . . . . . Effects 6 | . . . . . . . . 6 Message Errors 1 | . . . . . . . . 1 Matter Fused 1 | . . . . . . . . 1 Parts Fused 1 | . . . . . . . . 1 Data Loss (minor) 1 | . . . . . . . . 1 Data Loss (major) 1 | . . . . . . . . 1 Alerts 1 | . . . . . . . . 1 Overload Shots . | . . . . . . . . . Overflow Damage 401 | . . . 49 130 81 47 . 94 Projectiles . | . . . . . . . . . Explosions 52 | . . . 49 . . 3 . . Melee 349 | . . . . 130 81 44 . 94 Knockbacks 2 | . . . . 1 1 . . . Impact 2 | . . . . 1 1 . . . Kinetic . | . . . . . . . . . Secondary . | . . . . . . . . . Self-Inflicted Damage 47 | . . . . . . 47 . . Shots 2 | . . . . . . 2 . . Rammed 3 | . . . . . . 3 . . Targets Rammed 3 | . . . . . . 3 . . Kicked . | . . . . . . . . . Crushed . | . . . . . . . . . Highest Temperature 177 | . . . 1 . 177 11 . . Average Temperature 64 | . . . 1 . 83 7 . . Received Heat Transfer 177 | . . 30 18 . . 54 . 75 Siege Activations . | . . . . . . . . . Martial Activations . | . . . . . . . . . Shielding Activations . | . . . . . . . . . Robots Disrupted 2 | . . . 2 . . . . . Combat Hostiles . | . . . . . . . . . Robots Corrupted 4 | . . . . 1 2 1 . . Combat Hostiles . | . . . . . . . . . Parts Fried 4 | . . . . 1 2 1 . . Impact Corruptions 11 | . . . . 5 4 2 . . Robots Melted . | . . . . . . . . . Combat Hostiles . | . . . . . . . . . Parts Melted . | . . . . . . . . . Heat Transferred . | . . . . . . . . . Parts Sabotaged . | . . . . . . . . . Parts Stolen . | . . . . . . . . . Parts Stripped . | . . . . . . . . . Power Chain Reactions . | . . . . . . . . . Alert | -11 -10 -9 -8 -7 -6 -5 -4 -3 ------- Run | Yrd Mat Mat Mat Fac Fac Fac Fac Res Maximum Alert Level 1 | . . . 1 . . . . 1 Low Security (%) 85 | 100 100 100 73 100 100 100 100 71 Level 1 14 | . . . 26 . . . . 28 Level 2 . | . . . . . . . . . Level 3 . | . . . . . . . . . Level 4 . | . . . . . . . . . Level 5 . | . . . . . . . . . High Security . | . . . . . . . . . Max Security . | . . . . . . . . . Peak Influence 366 | . 15 96 274 129 167 179 71 366 Initial 119 | . . 5 23 119 60 81 71 31 Average 104 | . 1 40 108 122 69 131 66 130 Influence Increases 1507 | . 15 96 271 15 177 175 . 758 Destroy 0b10 Robot/C 380 | . . 80 180 . . 80 . 40 Destroy 0b10 Robot/NC 70 | . . . 15 15 25 5 . 10 Destroy Leader 52 | . . 10 22 . . 10 . 10 Successful Hack 32 | . . . . . 14 . . 18 Disable Machine 30 | . . . 15 . . 15 . . Destroy Structure 163 | . . 6 24 . 3 50 . 80 Partial Spotted 45 | . 15 . . . . . . 30 Lose Combat Pursuer 735 | . . . 15 . 135 15 . 570 Influence Decreases 1141 | . . 55 63 155 134 196 85 453 Entered New Map 443 | . . 10 33 145 64 86 75 30 Time Decay 408 | . . 25 30 10 70 50 10 213 Lost Part 290 | . . 20 . . . 60 . 210 Squads Dispatched 12 | . 1 1 . . 3 . . 7 Investigation 6 | . 1 . . . 3 . . 2 Extermination 3 | . . . . . . . . 3 Reinforcement 3 | . . 1 . . . . . 2 Assault . | . . . . . . . . . Garrison . | . . . . . . . . . Intercept . | . . . . . . . . . Searches Triggered . | . . . . . . . . . Construction Impeded . | . . . . . . . . . Haulers Reinforced . | . . . . . . . . . Active Scanning Responses . | . . . . . . . . . Cargo Convoy Interrupts . | . . . . . . . . . Stealth | -11 -10 -9 -8 -7 -6 -5 -4 -3 --------- Run | Yrd Mat Mat Mat Fac Fac Fac Fac Res Distress Signals 4 | . . 1 1 . . 1 . 1 Communications Jammed . | . . . . . . . . . Distress Signals . | . . . . . . . . . Times Spotted 110 | . 9 11 12 . 17 14 . 47 Peak Tracking Total 15 | . 10 6 8 . 8 9 . 15 Tactical Retreats 19 | . . . 1 . 2 1 . 15 ECM-based Alert Blocks 2 | . . . . . . . . 2 Traps | -11 -10 -9 -8 -7 -6 -5 -4 -3 ------- Run | Yrd Mat Mat Mat Fac Fac Fac Fac Res Traps Triggered 3 | . 1 . . . . . . 2 Indirectly . | . . . . . . . . . Trap Hack Attempts . | . . . . . . . . . Triggered . | . . . . . . . . . Disarmed . | . . . . . . . . . Reprogrammed . | . . . . . . . . . Reused . | . . . . . . . . . Traps Extracted . | . . . . . . . . . Installed . | . . . . . . . . . Triggered . | . . . . . . . . . Machines | -11 -10 -9 -8 -7 -6 -5 -4 -3 ---------- Run | Yrd Mat Mat Mat Fac Fac Fac Fac Res Machines Disabled 2 | . . . 1 . . 1 . . Max in Single Turn 1 | . . . 1 . . 1 . . Machines Repaired . | . . . . . . . . . Machines Dismantled . | . . . . . . . . . Machines Sabotaged . | . . . . . . . . . Overloaded Fab Kills . | . . . . . . . . . Hacking | -11 -10 -9 -8 -7 -6 -5 -4 -3 --------- Run | Yrd Mat Mat Mat Fac Fac Fac Fac Res Machines Accessed 6 | . . . . . 4 . . 2 Terminals 6 | . . . . . 4 . . 2 Fabricators . | . . . . . . . . . Repair Stations . | . . . . . . . . . Recycling Units . | . . . . . . . . . Scanalyzers . | . . . . . . . . . Garrison Access . | . . . . . . . . . Total Hacks 11 | . . . . . 7 . . 4 Successful 3 | . . . . . 1 . . 2 Failed 8 | . . . . . 6 . . 2 Catastrophic 5 | . . . . . 4 . . 1 Database Lockouts . | . . . . . . . . . Manual 11 | . . . . . 7 . . 4 Terminals 11 | . . . . . 7 . . 4 Fabricators . | . . . . . . . . . Repair Stations . | . . . . . . . . . Recycling Units . | . . . . . . . . . Scanalyzers . | . . . . . . . . . Garrison Access . | . . . . . . . . . Terminal Hacks 1 | . . . . . . . . 1 Level Access Points 1 | . . . . . . . . 1 Fabricator Hacks . | . . . . . . . . . Repair Station Hacks . | . . . . . . . . . Recycling Unit Hacks . | . . . . . . . . . Scanalyzer . | . . . . . . . . . Garrison Access Hacks . | . . . . . . . . . Unauthorized Hacks 2 | . . . . . 1 . . 1 Terminals 2 | . . . . . 1 . . 1 Botnet 2 | . . . . . 1 . . 1 Fabricators . | . . . . . . . . . Repair Stations . | . . . . . . . . . Recycling Units . | . . . . . . . . . Scanalyzers . | . . . . . . . . . Garrison Access . | . . . . . . . . . Data Cores Recovered . | . . . . . . . . . Used . | . . . . . . . . . Hacking Detections 6 | . . . . . 4 . . 2 Full Trace Events 4 | . . . . . 3 . . 1 Feedback Events 1 | . . . . . 1 . . . Corruption 1 | . . . . . 1 . . . Feedback Blocked . | . . . . . . . . . Robot Schematics Acquired . | . . . . . . . . . Robots Built . | . . . . . . . . . Authchips . | . . . . . . . . . Time . | . . . . . . . . . Total Robot Build Rating . | . . . . . . . . . Part Schematics Acquired . | . . . . . . . . . Parts Built . | . . . . . . . . . Authchips . | . . . . . . . . . Time . | . . . . . . . . . Total Part Build Rating . | . . . . . . . . . Part Studies Acquired . | . . . . . . . . . Parts Repaired . | . . . . . . . . . Time . | . . . . . . . . . Parts Recycled . | . . . . . . . . . Recycled Matter . | . . . . . . . . . Retrieved Matter . | . . . . . . . . . Retrieved Components . | . . . . . . . . . Parts Scanalyzed . | . . . . . . . . . Part Schematics Acquired . | . . . . . . . . . Parts Damaged . | . . . . . . . . . Bothacking | -11 -10 -9 -8 -7 -6 -5 -4 -3 ------------ Run | Yrd Mat Mat Mat Fac Fac Fac Fac Res Used RIF Installer . | . . . . . . . . . Robots Hacked . | . . . . . . . . . Non-combat . | . . . . . . . . . Combat . | . . . . . . . . . Robot Hacks Applied . | . . . . . . . . . Relay Couplers Released . | . . . . . . . . . Fabnet Peak Effective % . | . . . . . . . . . Robots Rewired . | . . . . . . . . . Allies Hacked . | . . . . . . . . . Hacks Repelled . | . . . . . . . . . Allies | -11 -10 -9 -8 -7 -6 -5 -4 -3 -------- Run | Yrd Mat Mat Mat Fac Fac Fac Fac Res Total Allies . | . . . . . . . . . Largest Group . | . . . . . . . . . Highest-Rated Group . | . . . . . . . . . Highest-Rated Ally . | . . . . . . . . . Total Orders . | . . . . . . . . . Ally Attacks . | . . . . . . . . . Total Damage . | . . . . . . . . . Kills . | . . . . . . . . . Allies Corrupted . | . . . . . . . . . Allies Melted . | . . . . . . . . . Intel | -11 -10 -9 -8 -7 -6 -5 -4 -3 ------- Run | Yrd Mat Mat Mat Fac Fac Fac Fac Res Active Infowar (turns) 303 | . . . . 25 157 117 . 4 Sensors 15 | . . . . . . 15 . . Structural 299 | . . . . 25 157 117 . . ECM 4 | . . . . . . . . 4 Robot Analysis Total . | . . . . . . . . . Derelict Logs Recovered . | . . . . . . . . . Drone Launches . | . . . . . . . . . Drone Recoveries . | . . . . . . . . . Exploration | -11 -10 -9 -8 -7 -6 -5 -4 -3 ------------- Run | Yrd Mat Mat Mat Fac Fac Fac Fac Res Turns Passed 1002 | 13 39 69 75 35 157 119 33 462 Spaces Moved 2168 | 25 75 135 120 69 407 261 23 1053 Core 314 | 25 75 73 84 . . . 23 34 Treads . | . . . . . . . . . Legs . | . . . . . . . . . Wheels . | . . . . . . . . . Hover . | . . . . . . . . . Flight 1854 | . . 62 36 69 407 261 . 1019 Fastest Speed 22 | 50 50 37 34 29 28 22 150 27 Average Speed 38 | 50 50 44 45 33 30 28 150 39 Slowest Speed 150 | 50 50 50 50 34 34 34 150 150 Overloaded Moves . | . . . . . . . . . Propulsion Burnouts . | . . . . . . . . . Robots Hopped 28 | . . . . . . 2 . 26 Potential Cave-ins . | . . . . . . . . . Cave-ins Triggered . | . . . . . . . . . Exploration Rate (%) 18 | 3 22 32 28 3 20 13 1 45 Regions Visited 8 Branch Regions . Pre-discovered Areas . | . . . . . . . . . Known Exits Taken 2 | . . . . . . 1 1 . Unknown Exits Taken 6 | 1 1 1 1 1 1 . . . Scrap Searched . | . . . . . . . . . Spaces Dug 8 | . . . . . 3 4 . 1 Terrain Destroyed 107 | . . 8 24 . 3 24 . 48 Melee 8 | . . . . . 3 4 . 1 Projectile . | . . . . . . . . . AOE 99 | . . 8 24 . . 20 . 47 Terrain Rammed . | . . . . . . . . . Walls Destroyed . | . . . . . . . . . Machines Disabled . | . . . . . . . . . Actions | -11 -10 -9 -8 -7 -6 -5 -4 -3 --------- Run | Yrd Mat Mat Mat Fac Fac Fac Fac Res Total 2236 | 24 75 141 133 73 423 287 22 1058 Wait . | . . . . . . . . . Move 2108 | 24 74 134 119 68 406 257 22 1004 Hop 25 | . . . . . . 2 . 23 Pick Up 5 | . 1 1 1 . . 2 . . Fast Attach 35 | . . 3 2 2 7 8 . 13 Attach 10 | . . 1 3 . . 1 . 5 Detach 9 | . . 1 2 . 1 2 . 3 Swap 2 | . . . . . 1 1 . . Drop 3 | . . . . . . 2 . 1 Fire 17 | . . 1 6 . . 4 . 6 Melee 20 | . . . . 3 8 6 . 3 Ram 2 | . . . . . . 2 . . Kick . | . . . . . . . . . Crush . | . . . . . . . . . Escape Stasis . | . . . . . . . . . Rewire . | . . . . . . . . . Trap . | . . . . . . . . . Miscellaneous . | . . . . . . . . . Route ------- -11/Scrapyard -10/Materials -9/Materials (discovered 2 exits: [*Mat] / [*Min]) -8/Materials -7/Factory -6/Factory -5/Factory -4/Factory -3/Research (discovered 3 exits: Res x3) History --------- Turn | Location | Event 3 | -11/Scrapyard | Discovered new exit (range 16) 14 | -11/Scrapyard | Entered Materials 51 | -10/Materials | Discovered new exit (range 4) 53 | -10/Materials | Entered another Materials area 53 | -9/Materials | Evolved 2 slots: Propulsion x2 79 | -9/Materials | Discovered new exit (range 16) 116 | -9/Materials | Discovered new exit (range 16) 122 | -9/Materials | Entered another Materials area 122 | -8/Materials | Evolved 2 slots: Propulsion x1, Utility x1 196 | -8/Materials | Discovered new exit (range 4) 197 | -8/Materials | Entered Factory 197 | -7/Factory | Evolved 2 slots: Propulsion x1, Utility x1 200 | -7/Factory | Destroyed 9 combat bots 226 | -7/Factory | Discovered new exit (range 6) 232 | -7/Factory | Entered another Factory area 232 | -6/Factory | Evolved 2 slots: Propulsion x1, Utility x1 386 | -6/Factory | Discovered new exit (range 11) 389 | -6/Factory | Entered another Factory area 389 | -5/Factory | Evolved 2 slots: Power x1, Propulsion x1 472 | -5/Factory | Lost 4 parts (1p2n1u) 503 | -5/Factory | Discovered new exit (range 12) 505 | -5/Factory | Identified exit to Factory 508 | -5/Factory | Entered another Factory area 508 | -4/Factory | Evolved 2 slots: Utility x2 519 | -4/Factory | Discovered new exit (range 15) 540 | -4/Factory | Identified exit to Research 541 | -4/Factory | Entered Research 541 | -3/Research | Evolved 2 slots: Propulsion x2 599 | -3/Research | Lost 4 parts (1p1n1u1w) 601 | -3/Research | Spotted B-86 Titan 706 | -3/Research | Lost 9 parts (7n2u) 831 | -3/Research | Lost 5 parts (2p1n1u1w) 832 | -3/Research | Core integrity fell below 50% 909 | -3/Research | Spotted B-86 Titan 951 | -3/Research | Build established: Mutant 1000 | -3/Research | Identified exit to Research 1003 | -3/Research | Self-destructed Last Messages --------------- 00930_ Acquired Lgt. Ion Engine. 00930_ K-01 Serf collects debris. 00931_ Acquired 21 matter. 00971_ ALERT: Suspicious intruders detected, dispatching Cutter reinforcements to area. 00978_ ALERT: Cargo convoy en route, clear transfer corridor. 00980_ Acquired Imp. Hacking Suite. 00983_ C-30 ARC bursts open, deploying its payload. 00983_ P-80 Master unfolds itself. 00983_ ECM Suite destroyed. 00983_ Lgt. Ion Engine destroyed. 01000_ Connecting with Terminal... >>Access(Main) Found 3 level access points to Research: (180,193) (129,67) (109,162) Map updated. 01000_ ALERT: Suspicious activity at Terminal R007. Dispatching Investigation squad. Map ----- +----------------------------------------------------+ | ?????????????# "##########?# """ """ #?????? | | ?????????????# ##??????????# """S""" #?????? | | ?????????????# #???????????# ? #?????? | | ?????????????# #???????????# ??? ??? ?????? | | ?????????????# #???????????###????##????#?????? | | ?????????????# #??????????????????????????????? | | ?????????????# #??????????????????????????????? | | ?????????????# ########??H????????????????????? | | ?????????????# #???????????????????????? | | ?????????????# ##############+## | | ?????????????# | | ?????????????# !!! ########### ##### | | ?????????????# !! #?????????# #???????????? | | ?????????????# !! #?????????# #???????????? | | ?????????????# #?????????# #???????????? | | ??????????? +?????????# #???????????? | | ????????? #?????????# #???????????? | | ???????? !! #?????????# #???????????? | | ??????? !! #????????## #???????????? | | ??????? % ###############????????+ ########????? | | ???????? ??????? ? ?????????# # #????? | | ???????? ?????????? * ?#+##+#### # #????? | | ????????????????????? ?# + #????? | | ?????????????????????? ?# m # #????? | | ???????????#############/## # #????? | | ???????????# T + pp@ ! + #????? | | ???????????# #### % #########????? | | ???????????# #??# #?######?????? | | ???????????# """#??# """ #? ! #?????? | | ???????????+ """#??# """ # #?????? | | ???????????# ! """#??# """ # #?????? | | ???????????# #??# + #?????? | | ???????????# #??# # #?????? | | ???????????# #??# # #?????? | | ???????????###########?# #########?######?????? | | ???????????????# # #????????????????????? | | ???????????????# # #????????????????????? | | ???????????????# + #????????????????????? | | ???????????????# ######????????????????????? | | ???????????????# ??????????????????????????? | | ???????????????#######???????????????????????????? | | ?????????????????????????????????????????????????? | | ?????????????????????????????????????????????????? | | ?????????????????????????????????????????????????? | | ?????????????????????????????????????????????????? | | ?????????????????????????????????????????????????? | | ?????????????????????????????????????????????????? | | ?????????????????????????????????????????????????? | | ?????????????????????????????????????????????????? | | ?????????????????????????????????????????????????? | +----------------------------------------------------+ Best States ------------- Heat Dissipation 46 Energy Generation 20 Energy Capacity 310 Matter Stores 300 Matter Capacity 300 Sight Range 16 Robot Scan Range 16 Terrain Scan Density 10 ECM Strength 1 Power Amplification 20 Armor Coverage 225 Evasion (%) 64 Melee Accuracy 6 Offensive Hacking 22 Item Schematics ----------------- None Robot Schematics ------------------ None Fabricated ------------ Nothing Repaired ---------- Nothing Studied --------- None Alien Tech Used ----------------- None Achievements -------------- None Challenges ------------ None Game ------ Seed StorageLegDesublimator Manual? 0 Play Time 00:24:38 Cumulative 292.2 hours Start 2026.07.18 @ 05:04:59 End 2026.07.18 @ 05:24:26 Sessions 1 Manual Loads 0 Difficulty Rogue Special Mode None Game No. 135 Rogue 135 Adventurer 0 Explorer 0 Win Type - Total 18 Types 14/1/1/1/0/0/0/0/0/1 Lore% 79 Gallery% 74 Achievement% 72 Wizard Run 0 Options --------- Layout 0 ASCII 0 Keyboard 1 Movement Arrows Keybinds 0 Fullscreen 2 Font 18/SmallcapsGlow Map View 76x50 Zoom Use 0% Tactical HUD 1 Map Filters NONE Filters NONE Steam 1 RUN: 70005387-97d0-42e6-8f4a-c682ac071f87